Cogmind - Beta 9 *** ADVENTURER MODE // 2019.10.24 @ 20:05:41 Player: chandlerman Result: Destroyed by S-27 Virus with Autogun Performance ------------- Evolutions (3) 1500 Regions Visited (10) 2000 Robots Destroyed (119) 595 Value Destroyed (3167) 3167 Prototype IDs (4) 80 Alien Tech Used (0) 0 Bonus (4) 4 TOTAL SCORE: 7346 Bonus ------- High Alert Combat Kills 178 Friendly Fire -174 Cogmind --------- Core Integrity 0/700 Matter 157/300 Energy 90/100 System Corruption 13% Temperature Cool (0) Location -7/Factory Parts ------- Power (2) Propulsion (2) Utility (6) Transmission Jammer Weapon (3) Inventory (4) Peak State ------------ Power Nuclear Core Light Angular Momentum Engine Propulsion Armored Treads Armored Treads Utility Improved Heat Sink Medium Storage Unit Advanced Visual Processing Unit Improved Targeting Computer Hacking Suite System Backup Module Weapon Advanced Beam Rifle Improved EM Pulse Cannon Gauss Rifle Inventory Light Deuterium Engine Light Nuclear Core Light Nuclear Core Armored Treads Improved Light Armor Plating Hardlight Generator Improved Shield Generator Ion Cannon [Rating: 44] Favorites ----------- Power Improved Ion Engine Engine Improved Ion Engine Power Core Nuclear Core Propulsion Light Treads Treads Light Treads Wheel Wheel Utility Armor Integrity Analyzer Device Hardlight Generator Storage Medium Storage Unit Processor Armor Integrity Analyzer Hackware Hacking Suite Protection Medium Armor Plating Weapon Improved Light Cannon Energy Gun Advanced Beam Rifle Energy Cannon Particle Cannon Ballistic Gun Gauss Rifle Ballistic Cannon Improved Light Cannon Launcher Proton Missile Launcher Special Weapon Mining Laser Build | -11 -10 -10 -9 -9 -9 -8 -8 -7 -7 -7 ------- Run | Scr Mat Min Mat Min Exi Min Mat Fac Was Fac Slots Evolved 6 | . . . 2 . . . 2 2 . . Power 1 | . . . . . . . 1 . . . Propulsion . | . . . . . . . . . . . Utility 4 | . . . 2 . . . . 2 . . Weapon 1 | . . . . . . . 1 . . . Parts Attached 87 | 6 3 3 24 1 4 1 18 18 . 9 Power 17 | 1 . . 5 . 1 1 3 4 . 2 Engine 13 | 1 . . 5 . 1 1 3 2 . . Core 4 | . . . . . . . . 2 . 2 Reactor . | . . . . . . . . . . . Propulsion 12 | 2 . . 2 . 2 . 4 2 . . Treads 10 | 2 . . 2 . 2 . 2 2 . . Leg . | . . . . . . . . . . . Wheel 2 | . . . . . . . 2 . . . Hover . | . . . . . . . . . . . Flight . | . . . . . . . . . . . Utility 23 | 1 1 . 4 1 1 . 5 6 . 4 Device 11 | . . . 2 1 . . 3 2 . 3 Storage 2 | 1 . . . . 1 . . . . . Processor 5 | . 1 . 1 . . . 1 2 . . Hackware 1 | . . . . . . . . 1 . . Protection 4 | . . . 1 . . . 1 1 . 1 Artifact . | . . . . . . . . . . . Weapon 35 | 2 2 3 13 . . . 6 6 . 3 Energy Gun 7 | 1 . . 2 . . . 1 3 . . Energy Cannon 8 | . 2 1 2 . . . . 2 . 1 Ballistic Gun 8 | 1 . 2 1 . . . 3 1 . . Ballistic Cannon 6 | . . . 4 . . . 1 . . 1 Launcher 1 | . . . . . . . . . . 1 Special Weapon 5 | . . . 4 . . . 1 . . . Impact Weapon . | . . . . . . . . . . . Slashing Weapon . | . . . . . . . . . . . Piercing Weapon . | . . . . . . . . . . . Special Melee Weapon . | . . . . . . . . . . . Unidentified Prototypes . | . . . . . . . . . . . Parts Lost 30 | . . . 3 . . 3 7 5 5 7 Power 4 | . . . 1 . . . 1 . 1 1 Propulsion 3 | . . . . . . 1 1 . 1 . Utility 11 | . . . 1 . . 2 1 1 3 3 Weapon 12 | . . . 1 . . . 4 4 . 3 Highest Loss Streak 5 | . . . 1 . . 3 2 2 5 5 Average Slot Usage (%) 91 | . 87 100 96 100 100 94 93 99 55 20 Engine 11 | . 14 14 10 11 11 11 17 11 3 . Treads 15 | . 28 28 21 22 22 20 7 8 7 . Wheel 2 | . . . . . . . 9 6 . . Device 9 | . . . 9 11 11 9 9 11 8 9 Storage 9 | . 14 14 11 11 11 11 9 7 3 . Processor 14 | . 2 14 12 22 22 20 11 19 9 . Hackware 1 | . . . . . . . . 5 3 . Protection 2 | . . . 8 . . . 2 . . 3 Energy Gun 2 | . 12 . 1 . . . 2 3 3 . Energy Cannon 3 | . 4 14 5 . . . . 4 7 . Ballistic Gun 6 | . 11 13 5 . . . 9 13 . . Ballistic Cannon 9 | . . . 7 22 22 22 13 . . . Naked Turns 58 | . . . . . . . . . 46 12 Heaviest Build 43 | 12 17 14 27 21 25 25 41 43 43 24 Greatest Support 43 | 40 40 40 40 40 43 43 40 40 40 3 Greatest Overweight (x) 11 | . . . . . . 1 10 1 11 7 Average Overweight (x) . | . . . . . . . 1 . . 2 Largest Inventory Capacity 8 | 6 6 6 6 6 8 8 8 8 8 4 Average Capacity 6 | 5 6 6 6 6 7 8 8 8 6 4 Most Carried 8 | 4 5 5 6 6 6 6 8 8 7 3 Average Carried 5 | 1 2 5 5 5 5 5 5 7 5 . Final Capacity 4 | . . . . . . . . . . 4 Final Carried . | . . . . . . . . . . . Class Distribution -------------------- 61% | Mutant 15% | Scavenger-Gunner 13% | Gunner 4% | Tank 3% | Scavenger-Mutant Dominant Class ---------------- Mutant | -10/Materials Mutant | -10/Mines Mutant | -9/Materials Mutant | -9/Mines Mutant | -9/Exiles Mutant | -8/Mines Gunner | -8/Materials Scavenger-Gunner | -7/Factory Mutant | -7/Waste Mutant | -7/Factory Resources | -11 -10 -10 -9 -9 -9 -8 -8 -7 -7 -7 ----------- Run | Scr Mat Min Mat Min Exi Min Mat Fac Was Fac Matter Collected 2811 | 254 33 59 432 78 . 170 833 952 . . Remotely . | . . . . . . . . . . . Salvage Created 3610 | . 94 117 572 60 . 89 1078 1542 . 58 Parts 221 | . 9 14 34 10 . 7 59 86 . 2 Haulers Intercepted 1 | . . . . . . . 1 . . . Recyclers Shooed 6 | . . . 1 . . . 2 3 . . Parts Field Recycled . | . . . . . . . . . . . Retrieved Matter . | . . . . . . . . . . . Parts Self-Destructed . | . . . . . . . . . . . Prevented . | . . . . . . . . . . . Kills | -11 -10 -10 -9 -9 -9 -8 -8 -7 -7 -7 ------- Run | Scr Mat Min Mat Min Exi Min Mat Fac Was Fac Combat Hostiles Destroyed 86 | . 3 8 18 5 . 4 20 27 . 1 Guns 42 | . 3 3 2 . . . 11 23 . . Cannons 44 | . . 5 16 5 . 4 9 4 . 1 Classes Destroyed 14 | . 2 . 4 1 . . 5 2 . . Worker 9 | . . . 2 . . . 6 1 . . Builder 7 | . . . . 1 . . 2 4 . . Tunneler 2 | . . . . . . . 1 1 . . Hauler 1 | . . . . . . . 1 . . . Recycler 5 | . . . . . . . 2 3 . . Operator 3 | . . . . . . . 2 1 . . Watcher 6 | . 2 . 1 . . . 1 2 . . Swarmer 38 | . 3 8 8 3 . 3 6 7 . . Grunt 26 | . . . 5 2 . 1 9 9 . . Brawler 3 | . . . 1 . . . 1 1 . . Duelist 1 | . . . . . . . . 1 . . Sentry 6 | . . . 4 . . . 1 . . 1 Hunter 8 | . . . . . . . 3 5 . . Programmer 4 | . . . . . . . . 4 . . Best Kill Streak 8 | . 3 3 8 3 . 4 8 5 . 1 Combat Bots Only 6 | . 3 3 6 3 . 4 4 5 . 1 Max Kills in Single Turn 2 | . 2 1 2 1 . 2 2 2 . 1 Gunslinging 1 | . 1 . . . . . . 1 . . Exploded . | . . . . . . . . . . . Melee . | . . . . . . . . . . . Uniques/NPCs Destroyed . | . . . . . . . . . . . Combat | -11 -10 -10 -9 -9 -9 -8 -8 -7 -7 -7 -------- Run | Scr Mat Min Mat Min Exi Min Mat Fac Was Fac Damage Taken 4721 | . 102 163 664 122 . 414 921 1187 171 977 Core 1131 | . 17 15 55 4 . 130 202 183 144 381 Absorbed by Shields 527 | . . . . . . . 219 189 . 119 Core Remaining (%) 75 | 100 . 87 . . . 52 63 . . . Volleys Fired 302 | . 14 16 64 14 . 11 85 80 4 14 Largest 3 | . 2 2 2 2 . 2 3 3 3 1 Hottest 209 | . 136 136 168 78 . 78 208 209 209 69 Shots Fired 704 | . 27 32 122 28 . 22 229 224 7 13 Gun 392 | . 23 14 38 . . . 124 189 4 . Cannon 297 | . 4 18 73 28 . 22 102 35 3 12 Launcher 1 | . . . . . . . . . . 1 Special 14 | . . . 11 . . . 3 . . . Kinetic 538 | . 12 14 68 28 . 22 203 181 . 10 Thermal 136 | . 15 18 54 . . . 26 17 6 . Explosive . | . . . . . . . . . . . Electromagnetic 30 | . . . . . . . . 26 1 3 Robot Hit Streak 26 | . 5 5 14 5 . 5 12 26 23 21 Robot Miss Streak 5 | . 5 2 5 1 . 2 4 3 1 2 Penetration Max 1 | . . . . . . . 1 1 . . Secondary Targets 7 | . 1 . . . . . . 6 . . Max Gunslinging Chain 2 | . 1 . . . . . . 2 . . Shots Hit Robots 457 | . 14 20 64 19 . 10 146 168 6 10 Core Hits 185 | . 6 9 27 7 . 6 59 64 3 4 Critical Hits 8 | . . . 1 1 . . 1 4 . 1 Critical Kills 4 | . . . . 1 . . . 3 . . Critical Parts Destroyed 3 | . . . 1 . . . 1 . . 1 Melee Attacks . | . . . . . . . . . . . Impact . | . . . . . . . . . . . Slashing . | . . . . . . . . . . . Piercing . | . . . . . . . . . . . Sneak Attacks . | . . . . . . . . . . . Combat Hostiles . | . . . . . . . . . . . Follow-up Attacks . | . . . . . . . . . . . Damage Inflicted 9177 | . 151 345 1084 376 . 235 2683 3910 145 248 Guns 4872 | . 89 59 211 . . . 1454 2937 122 . Cannons 3872 | . 62 286 873 376 . 235 1205 582 23 230 Explosions 409 | . . . . . . . . 391 . 18 Melee . | . . . . . . . . . . . Ramming . | . . . . . . . . . . . Kinetic 6549 | . 38 59 571 376 . 235 2301 2789 . 180 Thermal 1881 | . 113 286 513 . . . 382 442 145 . Explosive 215 | . . . . . . . . 215 . . Electromagnetic 532 | . . . . . . . . 464 . 68 Impact . | . . . . . . . . . . . Slashing . | . . . . . . . . . . . Piercing . | . . . . . . . . . . . Highest Corruption 13 | . . . 1 1 1 8 . 3 12 13 Average Corruption 2 | . . . 1 1 1 2 . 1 8 12 Corruption Purged 2 | . . . . . . . . 2 . . Effects 35 | . . . 2 2 2 2 . 5 7 15 Message Errors 8 | . . . . . 1 . . 3 1 3 Matter Fused 3 | . . . . . . . . . 2 1 Heat Flow Errors 6 | . . . . . . 1 . . 1 4 Energy Discharges 5 | . . . 1 1 1 . . 1 . 1 Parts Rejected 1 | . . . . . . . . . . 1 Data Loss (minor) 6 | . . . 1 1 . 1 . 1 2 . Misdirections 2 | . . . . . . . . . . 2 Targeting Errors 3 | . . . . . . . . . 1 2 Weapon Failures 1 | . . . . . . . . . . 1 Overload Shots . | . . . . . . . . . . . Overflow Damage 156 | . . 1 . 4 . 1 12 138 . . Projectiles 76 | . . 1 . 4 . 1 12 58 . . Explosions 80 | . . . . . . . . 80 . . Melee . | . . . . . . . . . . . Knockbacks 24 | . . . 5 2 . . 16 . . 1 Impact . | . . . . . . . . . . . Kinetic 20 | . . . 5 2 . . 12 . . 1 Secondary 4 | . . . . . . . 4 . . . Self-Inflicted Damage 114 | . . . . . . . . 114 . . Shots 2 | . . . . . . . . 2 . . Rammed . | . . . . . . . . . . . Targets Rammed . | . . . . . . . . . . . Kicked . | . . . . . . . . . . . Crushed . | . . . . . . . . . . . Highest Temperature 699 | . 140 300 336 . . 112 699 394 109 266 Average Temperature 128 | . 60 118 84 . . 33 209 79 39 91 Received Heat Transfer 1054 | . . . 276 63 . 27 330 121 . 237 Effects 59 | . . 1 3 . . . 50 5 . . Shutdowns 18 | . . . . . . . 14 4 . . Energy Bleed 6 | . . 1 . . . . 4 1 . . Interference 7 | . . . 3 . . . 4 . . . Matter Decay 5 | . . . . . . . 5 . . . Short Circuit 3 | . . . . . . . 3 . . . Damage (minor) 3 | . . . . . . . 3 . . . Damage (major) 16 | . . . . . . . 16 . . . Damage (core) 1 | . . . . . . . 1 . . . Siege Activations . | . . . . . . . . . . . Robots Corrupted . | . . . . . . . . . . . Combat Hostiles . | . . . . . . . . . . . Parts Fried 1 | . . . . . . . . 1 . . Impact Corruptions . | . . . . . . . . . . . Robots Melted . | . . . . . . . . . . . Combat Hostiles . | . . . . . . . . . . . Parts Melted 4 | . . . . . . . . 4 . . Heat Transferred 3387 | . 259 518 962 . . . 753 583 312 . Parts Sabotaged . | . . . . . . . . . . . Parts Stolen . | . . . . . . . . . . . Parts Stripped . | . . . . . . . . . . . Power Chain Reactions 1 | . . . . . . . . 1 . . Missiles Intercepted . | . . . . . . . . . . . Alert | -11 -10 -10 -9 -9 -9 -8 -8 -7 -7 -7 ------- Run | Scr Mat Min Mat Min Exi Min Mat Fac Was Fac Peak Influence 653 | . 99 237 347 209 . 98 309 653 161 101 Average Influence 211 | . 57 163 193 146 . 29 152 426 147 73 Maximum Alert Level 2 | . . 1 1 1 . . 1 2 . . Low Security (%) 58 | . . . . . . . . . . . Level 1 25 | . . . . . . . . . . . Level 2 16 | . . . . . . . . . . . Level 3 . | . . . . . . . . . . . Level 4 . | . . . . . . . . . . . Level 5 . | . . . . . . . . . . . High Security . | . . . . . . . . . . . Max Security . | . . . . . . . . . . . Squads Dispatched 21 | . . . 1 . . . 6 13 . 1 Investigation 11 | . . . 1 . . . 2 7 . 1 Extermination 3 | . . . . . . . . 3 . . Reinforcement 4 | . . . . . . . 4 . . . Assault . | . . . . . . . . . . . Garrison 3 | . . . . . . . . 3 . . Intercept . | . . . . . . . . . . . Construction Impeded 1 | . . . . . . . 1 . . . Haulers Reinforced . | . . . . . . . . . . . Stealth | -11 -10 -10 -9 -9 -9 -8 -8 -7 -7 -7 --------- Run | Scr Mat Min Mat Min Exi Min Mat Fac Was Fac Distress Signals 7 | . . . 2 . . . 4 1 . . Communications Jammed . | . . . . . . . . . . . Distress Signals . | . . . . . . . . . . . Times Spotted 150 | . 8 8 27 5 . 6 44 38 6 8 Peak Tracking Total 7 | . 4 3 6 3 . 3 7 4 6 6 Tactical Retreats 5 | . . . 1 . . . 2 1 . 1 Traps | -11 -10 -10 -9 -9 -9 -8 -8 -7 -7 -7 ------- Run | Scr Mat Min Mat Min Exi Min Mat Fac Was Fac Traps Triggered 5 | . . . . . . . . 4 . 1 Indirectly . | . . . . . . . . . . . Trap Hack Attempts . | . . . . . . . . . . . Triggered . | . . . . . . . . . . . Disarmed . | . . . . . . . . . . . Reprogrammed . | . . . . . . . . . . . Reused . | . . . . . . . . . . . Traps Extracted . | . . . . . . . . . . . Installed . | . . . . . . . . . . . Triggered . | . . . . . . . . . . . Machines | -11 -10 -10 -9 -9 -9 -8 -8 -7 -7 -7 ---------- Run | Scr Mat Min Mat Min Exi Min Mat Fac Was Fac Machines Disabled 10 | . . . . 2 . . . 7 . 1 Max in Single Turn 2 | . . . . 1 . . . 2 . 1 Machines Sabotaged . | . . . . . . . . . . . Garrisons Compromised . | . . . . . . . . . . . Overloaded Fab Kills . | . . . . . . . . . . . Fab Network Shutdowns . | . . . . . . . . . . . Hacking | -11 -10 -10 -9 -9 -9 -8 -8 -7 -7 -7 --------- Run | Scr Mat Min Mat Min Exi Min Mat Fac Was Fac Machines Accessed 26 | . 1 . 5 . 4 . 5 10 . 1 Terminals 13 | . 1 . 3 . . . 3 6 . . Fabricators 3 | . . . . . . . . 2 . 1 Repair Stations 2 | . . . 1 . . . 1 . . . Recycling Units 4 | . . . 1 . . . 1 2 . . Scanalyzers . | . . . . . . . . . . . Garrison Access . | . . . . . . . . . . . Total Hacks 79 | . 1 . 11 . 18 . 18 28 . 3 Successful 55 | . 1 . 10 . 18 . 13 12 . 1 Failed 24 | . . . 1 . . . 5 16 . 2 Catastrophic 2 | . . . . . . . 1 1 . . Database Lockouts . | . . . . . . . . . . . Manual . | . . . . . . . . . . . Terminals 37 | . 1 . 7 . . . 10 19 . . Fabricators 9 | . . . . . . . . 6 . 3 Repair Stations 9 | . . . 2 . . . 7 . . . Recycling Units 6 | . . . 2 . . . 1 3 . . Scanalyzers . | . . . . . . . . . . . Garrison Access . | . . . . . . . . . . . Terminal Hacks 40 | . 1 . 6 . 18 . 6 9 . . Record 24 | . . . 3 . 18 . 1 2 . . Part Schematic 1 | . . . . . . . . 1 . . Robot Schematic 1 | . . . . . . . . 1 . . Robot Analysis 1 | . . . . . . . 1 . . . Prototype ID Bank 2 | . . . . . . . 1 1 . . Emergency Access Points 3 | . 1 . . . . . 1 1 . . Terminal Index 1 | . . . . . . . 1 . . . Scanalyzer Index 1 | . . . 1 . . . . . . . Alert Level 3 | . . . 1 . . . . 2 . . Locate Traps 1 | . . . . . . . 1 . . . Surveillance Status 1 | . . . 1 . . . . . . . Investigation Status 1 | . . . . . . . . 1 . . Fabricator Hacks 3 | . . . . . . . . 2 . 1 Load Schematic 1 | . . . . . . . . 1 . . Build 2 | . . . . . . . . 1 . 1 Repair Station Hacks 8 | . . . 2 . . . 6 . . . Scan Component 5 | . . . 1 . . . 4 . . . Repair 3 | . . . 1 . . . 2 . . . Recycling Unit Hacks 4 | . . . 2 . . . 1 1 . . Report Inventory 2 | . . . 1 . . . 1 . . . Retrieve Components 2 | . . . 1 . . . . 1 . . Scanalyzer . | . . . . . . . . . . . Garrison Access Hacks . | . . . . . . . . . . . Unauthorized Hacks . | . . . . . . . . . . . Terminals . | . . . . . . . . . . . Fabricators . | . . . . . . . . . . . Repair Stations . | . . . . . . . . . . . Recycling Units . | . . . . . . . . . . . Scanalyzers . | . . . . . . . . . . . Garrison Access . | . . . . . . . . . . . Data Cores Recovered 1 | . . . . . . . . 1 . . Used . | . . . . . . . . . . . Hacking Detections 17 | . . . 3 . . . 4 9 . 1 Full Trace Events 10 | . . . 1 . . . 2 6 . 1 Feedback Events 2 | . . . 1 . . . . . . 1 Corruption 2 | . . . 1 . . . . . . 1 Feedback Blocked . | . . . . . . . . . . . Robot Schematics Acquired 1 | . . . . . . . . 1 . . Robots Built 1 | . . . . . . . . 1 . . Matter 153 | . . . . . . . . 153 . . Time 40 | . . . . . . . . 40 . . Total Robot Build Rating 1 | . . . . . . . . 1 . . Part Schematics Acquired 1 | . . . . . . . . 1 . . Parts Built 1 | . . . . . . . . . . 1 Matter 168 | . . . . . . . . . . 168 Time 42 | . . . . . . . . . . 42 Total Part Build Rating 4 | . . . . . . . . . . 4 Parts Repaired 3 | . . . 1 . . . 2 . . . Time 84 | . . . 26 . . . 58 . . . Parts Recycled . | . . . . . . . . . . . Recycled Matter . | . . . . . . . . . . . Retrieved Matter . | . . . . . . . . . . . Retrieved Components 16 | . . . 6 . . . . 10 . . Parts Scanalyzed . | . . . . . . . . . . . Part Schematics Acquired . | . . . . . . . . . . . Parts Damaged . | . . . . . . . . . . . Bothacking | -11 -10 -10 -9 -9 -9 -8 -8 -7 -7 -7 ------------ Run | Scr Mat Min Mat Min Exi Min Mat Fac Was Fac Used RIF Installer . | . . . . . . . . . . . Robots Hacked . | . . . . . . . . . . . Non-combat . | . . . . . . . . . . . Combat . | . . . . . . . . . . . Robot Hacks Applied . | . . . . . . . . . . . Relay Couplers Released . | . . . . . . . . . . . Robots Rewired . | . . . . . . . . . . . Allies Hacked . | . . . . . . . . . . . Hacks Repelled . | . . . . . . . . . . . Allies | -11 -10 -10 -9 -9 -9 -8 -8 -7 -7 -7 -------- Run | Scr Mat Min Mat Min Exi Min Mat Fac Was Fac Total Allies 1 | . . . . . . . . 1 . . Largest Group 1 | . . . . . . . . 1 . . Highest-Rated Group 8 | . . . . . . . . 8 . . Highest-Rated Ally 8 | . . . . . . . . 8 . . Total Orders . | . . . . . . . . . . . Ally Attacks . | . . . . . . . . . . . Total Damage . | . . . . . . . . . . . Kills . | . . . . . . . . . . . Allies Corrupted . | . . . . . . . . . . . Allies Melted . | . . . . . . . . . . . Intel | -11 -10 -10 -9 -9 -9 -8 -8 -7 -7 -7 ------- Run | Scr Mat Min Mat Min Exi Min Mat Fac Was Fac Robot Analysis Total 1 | . . . . . . . 1 . . . Derelict Logs Recovered 1 | . . 1 . . . . . . . . Drone Launches . | . . . . . . . . . . . Drone Recoveries . | . . . . . . . . . . . Exploration | -11 -10 -10 -9 -9 -9 -8 -8 -7 -7 -7 ------------- Run | Scr Mat Min Mat Min Exi Min Mat Fac Was Fac Turns Passed 5644 | 76 241 277 1047 403 868 121 933 1154 161 363 Spaces Moved 3021 | 44 120 143 471 221 537 53 464 633 171 164 Core 302 | 6 . . . . . . 3 . 129 164 Treads 2034 | 38 120 143 471 221 537 53 125 284 42 . Legs . | . . . . . . . . . . . Wheels 685 | . . . . . . . 336 349 . . Hover . | . . . . . . . . . . . Flight . | . . . . . . . . . . . Fastest Speed 50 | 50 160 160 160 160 160 160 90 90 50 50 Average Speed 143 | 145 160 160 160 160 160 164 118 131 87 161 Slowest Speed 600 | 160 160 160 160 160 160 180 550 190 600 400 Overloaded Moves . | . . . . . . . . . . . Propulsion Burnouts . | . . . . . . . . . . . Robots Hopped . | . . . . . . . . . . . Cave-ins Triggered 1 | . . . . . . 1 . . . . Exploration Rate (%) 38 | 4 30 33 43 64 90 13 39 23 83 5 Regions Visited 10 Branch Regions 4 Pre-discovered Areas 2 | . . 1 . . 1 . . . . . Known Exits Taken . | . . . . . . . . . . . Unknown Exits Taken 8 | 1 1 1 1 1 1 1 1 . . . Scrap Searched . | . . . . . . . . . . . Spaces Dug 12 | . . . 11 . . 1 . . . . Terrain Destroyed 72 | . . . 13 1 . 4 5 49 . . Melee . | . . . . . . . . . . . Projectile 23 | . . . 13 1 . 4 5 . . . AOE 49 | . . . . . . . . 49 . . Actions | -11 -10 -10 -9 -9 -9 -8 -8 -7 -7 -7 --------- Run | Scr Mat Min Mat Min Exi Min Mat Fac Was Fac Total 3698 | 56 144 161 625 243 545 65 656 782 174 247 Wait 198 | . 4 . 34 7 . . 69 29 . 55 Move 3012 | 43 119 142 470 220 536 52 463 633 170 164 Hop . | . . . . . . . . . . . Pick Up 67 | 7 4 . 17 1 2 1 18 12 . 5 Fast Attach 6 | 1 . . 2 . . . 1 2 . . Attach 44 | 5 1 . 7 1 . . 13 8 . 9 Detach . | . . . . . . . . . . . Swap 37 | . 2 3 15 . 4 1 4 8 . . Drop 32 | . . . 16 . 3 . 3 10 . . Fire 302 | . 14 16 64 14 . 11 85 80 4 14 Melee . | . . . . . . . . . . . Ram . | . . . . . . . . . . . Kick . | . . . . . . . . . . . Crush . | . . . . . . . . . . . Escape Stasis . | . . . . . . . . . . . Rewire . | . . . . . . . . . . . Trap . | . . . . . . . . . . . Miscellaneous . | . . . . . . . . . . . Route ------- -11/Scrapyard -10/Materials -10/Mines -9/Materials -9/Mines -9/Exiles -8/Mines -8/Materials -7/Factory -7/Waste -7/Factory History --------- Turn | Location | Event 13 | -11/Scrapyard | Discovered new exit (range 15) 77 | -11/Scrapyard | Entered Materials 219 | -10/Materials | Discovered new exit (range 14) 303 | -10/Materials | Build established: Mutant 318 | -10/Materials | Entered Mines 383 | -10/Mines | Learned location of Zion (-7) 546 | -10/Mines | Discovered new exit (range 16) 595 | -10/Mines | Entered Materials 595 | -9/Materials | Evolved 2 slots: Utility x2 1149 | -9/Materials | Repaired Lgt. Treads 1589 | -9/Materials | Discovered new exit (range 14) 1642 | -9/Materials | Entered Mines 2036 | -9/Mines | Deemed a non-threat by the Exiles lab entrance 2037 | -9/Mines | Discovered new exit (range 5) 2045 | -9/Mines | Entered Exiles 2098 | -9/Exiles | Met 8R-AWN 2126 | -9/Exiles | Met EX-HEX 2190 | -9/Exiles | Met EX-DEC 2284 | -9/Exiles | Discovered new exit (range 12) 2406 | -9/Exiles | Visited The Gauntlet 2669 | -9/Exiles | Met EX-BIN 2913 | -9/Exiles | Entered Mines 3003 | -8/Mines | Discovered new exit (range 8) 3010 | -8/Mines | Crushed by falling debris 3034 | -8/Mines | Entered Materials 3034 | -8/Materials | Evolved 2 slots: Power x1, Weapon x1 3041 | -8/Materials | Lost 3 parts (1n2u) 3297 | -8/Materials | Repaired Imp. Ion Engine 3323 | -8/Materials | Repaired Lgt. Treads 3567 | -8/Materials | Discovered new exit (range 15) 3967 | -8/Materials | Entered Factory 3967 | -7/Factory | Evolved 2 slots: Utility x2 4153 | -7/Factory | Build established: Scavenger-Gunner 4254 | -7/Factory | Fabricated R-06 Scavenger (x1) 4440 | -7/Factory | Garrison activated, responded to threat 5121 | -7/Factory | Sucked down chute 5121 | -7/Factory | Entered Waste 5136 | -7/Waste | EMP discharged 5137 | -7/Waste | Spotted C-40 Crusher 5142 | -7/Waste | Spotted C-40 Crusher 5155 | -7/Waste | Spotted C-40 Crusher 5199 | -7/Waste | Spotted C-40 Crusher 5205 | -7/Waste | Crushed by Compactor (1 part destroyed, 2 dropped) 5212 | -7/Waste | Crushed by Compactor (1 part destroyed, 2 dropped) 5215 | -7/Waste | Crushed by Compactor (1 part destroyed, 2 dropped) 5218 | -7/Waste | Crushed by Compactor (1 part destroyed, 2 dropped) 5218 | -7/Waste | Spotted C-40 Crusher 5236 | -7/Waste | EMP discharged 5236 | -7/Waste | System corruption reached 10% 5236 | -7/Waste | Crushed by Compactor (1 part destroyed) 5241 | -7/Waste | Spotted C-40 Crusher 5267 | -7/Waste | Lost 5 parts (1p1n3u) 5277 | -7/Waste | Discovered new exit (range 11) 5282 | -7/Waste | Entered Factory 5429 | -7/Factory | Core integrity fell below 50% 5500 | -7/Factory | Lost 5 parts (1p3u1w) 5502 | -7/Factory | Build established: Mutant 5544 | -7/Factory | Fabricated Proton Missile Launcher (x1) 5622 | -7/Factory | Core integrity fell below 20% 5645 | -7/Factory | Destroyed by S-27 Virus with Autogun Last Messages --------------- 05622_ Slug penetrates Y-54 Guardian. 05622_ Y-54 Guardian destroyed. 05623_ Proton Missile Launcher destroyed. 05626_ Slug penetrates Wall. 05628_ H-55 Commando knocked back. 05629_ Penetrated by Slug. 05630_ System corrupted: Gauss Cannon jammed. 05634_ H-55 Commando suffers critical hit. 05634_ Destroyed Assault Rifle. 05635_ Penetrated by Slug. 05636_ Slug penetrates Wall. 05637_ U-05 Engineer builds a Door. 05638_ System corrupted: Heat flow error (+103). 05639_ Slug penetrates Wall. 05641_ Penetrated by Slug. 05641_ Slug penetrates Subcomponent Replicator. 05642_ Slug penetrates Wall. 05642_ Gauss Cannon destroyed. 05643_ Penetrated by Slug. [Achievement: Just Browsing] Map ----- +----------------------------------------------------+ | ?????????????????????????????????????????????????? | | ?????????????????????????????????????????????????? | | ?????????????????????????????????????????????????? | | ????????????? ?????????????????????????????????? | | ????????????? ???????????????????????????????? | | ????????#???# ????????????????????????????? | | ???????# ? ????????????????????????????? | | ??????? ?? ?????????????????????????????? | | ??????? ? ?????????????????????????????? | | ??????? ?? """ ?"????????????????????????? | | ??????? ? ""F"" " ???????????????????????? | | ??????"" "?"" "" "" " ???????????????????????? | | ?????""" """" " ???????????????????????? | | ??? """" """" " ???????????????????????? | | ?"" """" """" " ??????????????????????? | | """ """" """" " ??????????????????????? | | """ """" """" !!! " ? ???????????????????? | | """ """" """" !!! " ???????????????????? | | !! ??????????????????? | | """ """" """" #?????????????????????? | | """ """" """" #?????????????????????? | | """ """" """" ###"Y"######?????????????????????? | | """ """" """" #????"####???????????????????????? | | """ """" """" ######## ###?????????????????????? | | """ """" """" # s #?????????????????????? | | """ """" """" h%! ss@ #?????????????????????? | | #! " #?????????????????????? | | #uw """" #?????????????????????? | | # """"" r#?????????????????????? | | ######"" ""###### u + ????????????????????? | | ?????#""F""#????# """ # ???????????????????? | | ?????# """ #????# """"" + ?????????????????? | | ####?#######????# """"" # ????????????????? | | #????????????# # ???????????????? | | "" #????????????# "?" #?##+###??????????????? | | "" #????????????# """?" #?????????????????????? | | "" #????????????# ""??" #?????????????????????? | | "" #????????????# ???? #?????????????????????? | | #????????????# ???? #?????????????????????? | | ####????????????#####????##??????????????????????? | | ?????????????????????????????????????????????????? | | ?????????????????????????????????????????????????? | | ?????????????????????????????????????????????????? | | ?????????????????????????????????????????????????? | | ?????????????????????????????????????????????????? | | ?????????????????????????????????????????????????? | | ?????????????????????????????????????????????????? | | ?????????????????????????????????????????????????? | | ?????????????????????????????????????????????????? | | ?????????????????????????????????????????????????? | +----------------------------------------------------+ Best States ------------- Heat Dissipation 50 Energy Generation 27 Energy Capacity 430 Matter Stores 300 Matter Capacity 300 Sight Range 20 Terrain Scan Range 16 Terrain Scan Density 10 Jamming Range 8 Armor Coverage 225 Resistance: KI 20 Resistance: TH 20 Resistance: EX 20 Resistance: EM 20 Resistance: I 20 Resistance: S 20 Resistance: P 20 Evasion (%) 50 Targeting Accuracy 6 Core Analysis 6 Armor Integrity Analysis 33 Recoil Reduction 2 Offensive Hacking 10 Item Schematics ----------------- Adv. Drone Bay | -7/Factory | Hacked Robot Schematics ------------------ G-47 Trooper | -7/Factory | Hacked Fabricated ------------ R-06 Scavenger | x1 | -7/Factory | Preloaded Proton Missile Launcher | x1 | -7/Factory | Preloaded Alien Tech Used ----------------- None Achievements -------------- Just Browsing My Command Is Your Wish Party Time Challenges ------------ None Game ------ Seed SegregatorAntimatterGravjet Manual? 0 Play Time 01:36:58 Cumulative 72.9 hours Start 2019.10.24 @ 07:25:37 End 2019.10.24 @ 20:05:41 Sessions 1 Manual Loads 0 Difficulty Adventurer Special Mode None Game No. 37 Rogue 23 Adventurer 7 Explorer 0 Win Type - Total 0 Types 0/0/0/0/0/0/0 Lore% 14 Gallery% 25 Achievement% 16 Wizard Run 0 Options --------- ASCII 0 Keyboard 0 Movement Mouse Keybinds 0 Fullscreen 2 Font 18/SmallcapsGlow Map View 76x50 Tactical HUD 1 Map Filters NONE Filters NONE Steam 1 RUN: 283aa462-7fb7-49d7-aa9c-9ebe65d10b08